[Event "*** Titled Tuesday Blitz"]
[Site "Chess.com"]
[Date "2020.04.14"]
[Round "6"]
[White "MPGM"]
[Black "Carnivoras"]
[Result "0-1"]
[WhiteElo "2463"]
[BlackElo "2634"]
[TimeControl "180+1"]
[EndTime "11:03:04 PDT"]
[Termination "Carnivoras won by resignation"]

1. c4 {[%clk 0:03:00.4]} 1... e6 {[%clk 0:02:59.8]} 2. Nc3 {[%clk 0:03:00]} 2...
d5 {[%clk 0:02:59.8]} 3. d4 {[%clk 0:03:00.6]} 3... c6 {[%clk 0:02:59.9]} 4. e4
{[%clk 0:02:59.7]} 4... dxe4 {[%clk 0:02:59.8]} 5. Nxe4 {[%clk 0:03:00.6]} 5...
Bb4+ {[%clk 0:03:00.1]} 6. Bd2 {[%clk 0:03:00.9]} 6... Qxd4 {[%clk 0:03:00.1]}
7. Bxb4 {[%clk 0:03:01.4]} 7... Qxe4+ {[%clk 0:03:00.4]} 8. Be2 {[%clk
0:03:01.6]} 8... c5 {[%clk 0:03:00.7]} 9. Bxc5 {[%clk 0:02:58.2]} 9... Qxg2
{[%clk 0:03:00.2]} 10. Bf3 {[%clk 0:02:39]} 10... Qg5 {[%clk 0:02:59.2]} 11. Qd6
{[%clk 0:02:31.9]} 11... Nd7 {[%clk 0:02:57.8]} 12. Ba3 {[%clk 0:02:30.7]} 12...
Qe5+ {[%clk 0:02:46.9]} 13. Ne2 {[%clk 0:02:29.4]} 13... Qxd6 {[%clk 0:02:43.8]}
14. Bxd6 {[%clk 0:02:30.3]} 14... Ne7 {[%clk 0:02:42.9]} 15. O-O-O {[%clk
0:02:24]} 15... Nf5 {[%clk 0:02:40.6]} 16. Ba3 {[%clk 0:02:20.7]} 16... f6
{[%clk 0:02:39.1]} 17. Rhg1 {[%clk 0:02:12.9]} 17... Kf7 {[%clk 0:02:37.3]} 18.
Nf4 {[%clk 0:02:07.2]} 18... Ne5 {[%clk 0:02:29.3]} 19. Be2 {[%clk 0:02:03.8]}
19... Bd7 {[%clk 0:02:27.1]} 20. Nd3 {[%clk 0:01:36.2]} 20... Nxd3+ {[%clk
0:01:33.5]} 21. Bxd3 {[%clk 0:01:37.1]} 21... Bc6 {[%clk 0:01:31.7]} 22. Bxf5
{[%clk 0:01:32.3]} 22... exf5 {[%clk 0:01:31.7]} 23. f4 {[%clk 0:01:21.7]} 23...
Rhe8 {[%clk 0:01:29.9]} 24. Rde1 {[%clk 0:01:21.4]} 24... Re4 {[%clk 0:01:29.6]}
25. b3 {[%clk 0:01:17.9]} 25... Rae8 {[%clk 0:01:27.7]} 26. Rxe4 {[%clk
0:01:17.6]} 26... Rxe4 {[%clk 0:01:27.6]} 27. Bd6 {[%clk 0:01:12.7]} 27... Re2
{[%clk 0:01:26.1]} 28. a4 {[%clk 0:01:04.8]} 28... Rxh2 {[%clk 0:01:25.2]} 29.
a5 {[%clk 0:01:02.8]} 29... h5 {[%clk 0:01:23.6]} 30. b4 {[%clk 0:01:00.1]}
30... a6 {[%clk 0:01:22]} 31. Bc5 {[%clk 0:00:55.2]} 31... h4 {[%clk 0:01:21.4]}
32. Rd1 {[%clk 0:00:49.8]} 32... h3 {[%clk 0:01:20.8]} 33. Rd3 {[%clk
0:00:43.5]} 33... Rh1+ {[%clk 0:01:20]} 34. Kb2 {[%clk 0:00:43]} 34... Bg2
{[%clk 0:01:08.4]} 35. Rd7+ {[%clk 0:00:32.4]} 35... Kg6 {[%clk 0:01:06.1]} 36.
Bf8 {[%clk 0:00:32.1]} 36... h2 {[%clk 0:00:58.3]} 37. Rxg7+ {[%clk 0:00:30.5]}
37... Kh5 {[%clk 0:00:58.6]} 38. Rxg2 {[%clk 0:00:25.5]} 38... Rb1+ {[%clk
0:00:56.5]} 39. Kc2 {[%clk 0:00:23]} 39... h1=Q {[%clk 0:00:56.4]} 40. Rd2
{[%clk 0:00:21]} 40... Qe4+ {[%clk 0:00:55.5]} 41. Kc3 {[%clk 0:00:19.5]} 41...
Rc1+ {[%clk 0:00:55.6]} 42. Kb2 {[%clk 0:00:19]} 42... Qb1+ {[%clk 0:00:55.7]}
43. Ka3 {[%clk 0:00:19.5]} 43... Qa1+ {[%clk 0:00:55.9]} 44. Ra2 {[%clk
0:00:19.7]} 44... Rc3+ {[%clk 0:00:56]} 0-1

[Event "*** Titled Tuesday Blitz"]
[Site "Chess.com"]
[Date "2020.04.14"]
[Round "6"]
[White "mbachez"]
[Black "Bulldog167"]
[Result "0-1"]
[WhiteElo "2514"]
[BlackElo "2761"]
[TimeControl "180+1"]
[EndTime "11:03:05 PDT"]
[Termination "Bulldog167 won by resignation"]

1. e4 {[%clk 0:03:00.9]} 1... e6 {[%clk 0:03:00.3]} 2. d4 {[%clk 0:03:00.3]}
2... d5 {[%clk 0:03:00.9]} 3. Bd3 {[%clk 0:03:00.4]} 3... Nf6 {[%clk 0:03:00.4]}
4. e5 {[%clk 0:03:00]} 4... Nfd7 {[%clk 0:03:01]} 5. Nf3 {[%clk 0:03:00.1]} 5...
c5 {[%clk 0:03:01.6]} 6. c3 {[%clk 0:03:00.4]} 6... Nc6 {[%clk 0:03:01.9]} 7.
O-O {[%clk 0:03:00.2]} 7... Be7 {[%clk 0:03:01.8]} 8. Re1 {[%clk 0:02:59.3]}
8... a5 {[%clk 0:03:02]} 9. a4 {[%clk 0:02:57.2]} 9... cxd4 {[%clk 0:02:59.6]}
10. cxd4 {[%clk 0:02:56.9]} 10... Nb4 {[%clk 0:02:59.9]} 11. Bf1 {[%clk
0:02:52.2]} 11... b6 {[%clk 0:03:00.2]} 12. Nc3 {[%clk 0:02:52]} 12... Ba6
{[%clk 0:02:58.2]} 13. Nb5 {[%clk 0:02:51.9]} 13... Rc8 {[%clk 0:02:51.2]} 14.
Bg5 {[%clk 0:02:26.6]} 14... Bxb5 {[%clk 0:02:42.5]} 15. Bxe7 {[%clk 0:02:25.5]}
15... Kxe7 {[%clk 0:02:38]} 16. Bxb5 {[%clk 0:02:25.3]} 16... Nc2 {[%clk
0:02:38]} 17. Qd2 {[%clk 0:02:12.3]} 17... Nxa1 {[%clk 0:02:20.2]} 18. Rxa1
{[%clk 0:02:09]} 18... h6 {[%clk 0:02:20.4]} 19. Qe3 {[%clk 0:02:00.5]} 19...
Qc7 {[%clk 0:02:18.2]} 20. Qa3+ {[%clk 0:01:53.1]} 20... Kd8 {[%clk 0:02:15]}
21. h4 {[%clk 0:01:51.8]} 21... Nb8 {[%clk 0:02:10.8]} 22. Bd3 {[%clk
0:01:44.1]} 22... Nc6 {[%clk 0:02:01.4]} 23. Rc1 {[%clk 0:01:41.3]} 23... Qe7
{[%clk 0:02:01.6]} 24. Qa1 {[%clk 0:01:36.5]} 24... Nb4 {[%clk 0:01:59.9]} 25.
Bb5 {[%clk 0:01:36.3]} 25... Rc7 {[%clk 0:01:49.6]} 26. Rc3 {[%clk 0:01:32.1]}
26... Kc8 {[%clk 0:01:45.8]} 27. Qc1 {[%clk 0:00:55.1]} 27... Na2 {[%clk
0:01:45.1]} 28. Rxc7+ {[%clk 0:00:52.5]} 28... Qxc7 {[%clk 0:01:46]} 29. Qf4
{[%clk 0:00:46.2]} 29... Qc1+ {[%clk 0:01:45]} 30. Qxc1+ {[%clk 0:00:46]} 30...
Nxc1 {[%clk 0:01:45.9]} 31. Kf1 {[%clk 0:00:46.1]} 31... Kd8 {[%clk 0:01:35.5]}
32. Ke1 {[%clk 0:00:43.8]} 32... Ke7 {[%clk 0:01:34.1]} 33. Kd2 {[%clk
0:00:42.9]} 33... Na2 {[%clk 0:01:33.7]} 34. Ne1 {[%clk 0:00:39.9]} 34... Nb4
{[%clk 0:01:33.3]} 35. g3 {[%clk 0:00:34.2]} 35... f6 {[%clk 0:01:32.3]} 36. Nf3
{[%clk 0:00:32.6]} 36... Rc8 {[%clk 0:01:26.7]} 37. exf6+ {[%clk 0:00:30.7]}
37... gxf6 {[%clk 0:01:26.3]} 38. Ne1 {[%clk 0:00:30.6]} 38... e5 {[%clk
0:01:26.1]} 39. dxe5 {[%clk 0:00:22.8]} 39... fxe5 {[%clk 0:01:27]} 40. f3
{[%clk 0:00:19.6]} 40... Kf6 {[%clk 0:01:18.2]} 41. g4 {[%clk 0:00:19.1]} 41...
e4 {[%clk 0:01:16.7]} 42. fxe4 {[%clk 0:00:18.2]} 42... dxe4 {[%clk 0:01:16.7]}
43. Ke3 {[%clk 0:00:18]} 43... Ke5 {[%clk 0:01:16.2]} 44. g5 {[%clk 0:00:16.3]}
44... hxg5 {[%clk 0:01:15.9]} 45. hxg5 {[%clk 0:00:16.5]} 45... Nd5+ {[%clk
0:01:15.7]} 46. Ke2 {[%clk 0:00:15.9]} 46... Rg8 {[%clk 0:01:14.4]} 47. Nc2
{[%clk 0:00:11.4]} 47... Rxg5 {[%clk 0:01:14]} 0-1

[Event "*** Titled Tuesday Blitz"]
[Site "Chess.com"]
[Date "2020.04.14"]
[Round "6"]
[White "Medvezhlo"]
[Black "kekic76"]
[Result "0-1"]
[WhiteElo "2439"]
[BlackElo "2297"]
[TimeControl "180+1"]
[EndTime "11:03:05 PDT"]
[Termination "kekic76 won by resignation"]

1. d4 {[%clk 0:02:59.2]} 1... d5 {[%clk 0:02:55]} 2. c4 {[%clk 0:02:59]} 2... e6
{[%clk 0:02:53.4]} 3. Nf3 {[%clk 0:02:59.3]} 3... Nf6 {[%clk 0:02:53.5]} 4. Nc3
{[%clk 0:02:56.1]} 4... Be7 {[%clk 0:02:53.4]} 5. Bg5 {[%clk 0:02:55.8]} 5...
O-O {[%clk 0:02:53.1]} 6. e3 {[%clk 0:02:56]} 6... a6 {[%clk 0:02:53]} 7. a3
{[%clk 0:02:54.4]} 7... Nbd7 {[%clk 0:02:50.6]} 8. Qc2 {[%clk 0:02:54]} 8...
dxc4 {[%clk 0:02:46.4]} 9. Bxc4 {[%clk 0:02:53.6]} 9... c5 {[%clk 0:02:46.6]}
10. Rd1 {[%clk 0:02:53.1]} 10... h6 {[%clk 0:02:41.4]} 11. Bh4 {[%clk
0:02:52.9]} 11... b5 {[%clk 0:02:38.7]} 12. Ba2 {[%clk 0:02:52.3]} 12... c4
{[%clk 0:02:38.6]} 13. O-O {[%clk 0:02:49.4]} 13... Bb7 {[%clk 0:02:38.6]} 14.
Ne5 {[%clk 0:02:49.7]} 14... Nxe5 {[%clk 0:02:33.4]} 15. dxe5 {[%clk 0:02:49.6]}
15... Nd7 {[%clk 0:02:26.9]} 16. Bb1 {[%clk 0:02:46.7]} 16... g6 {[%clk
0:02:26.6]} 17. Bg3 {[%clk 0:02:37.7]} 17... Qc7 {[%clk 0:02:25]} 18. f4 {[%clk
0:02:37.1]} 18... Nc5 {[%clk 0:02:19.5]} 19. f5 {[%clk 0:02:32.3]} 19... exf5
{[%clk 0:02:14.2]} 20. e6 {[%clk 0:02:28.5]} 20... Qc6 {[%clk 0:02:08.7]} 21.
Nd5 {[%clk 0:02:27.8]} 21... Qxe6 {[%clk 0:02:03.5]} 22. Nc7 {[%clk 0:02:22.4]}
22... Qxe3+ {[%clk 0:01:56.8]} 23. Kh1 {[%clk 0:02:16.4]} 23... Ne4 {[%clk
0:01:46.7]} 24. Rde1 {[%clk 0:02:06.2]} 24... Qg5 {[%clk 0:01:31.5]} 25. Rxe4
{[%clk 0:02:01.3]} 25... Bxe4 {[%clk 0:01:27.6]} 26. Qf2 {[%clk 0:02:00.1]}
26... Bxb1 {[%clk 0:01:17]} 27. Nxa8 {[%clk 0:01:59.2]} 27... Bd3 {[%clk
0:01:14.3]} 28. Re1 {[%clk 0:01:57.7]} 28... Bf6 {[%clk 0:01:14.3]} 29. Nc7
{[%clk 0:01:52.8]} 29... Be4 {[%clk 0:01:04.5]} 30. Nxa6 {[%clk 0:01:49.1]}
30... Rd8 {[%clk 0:00:53.5]} 31. Nc5 {[%clk 0:01:48.3]} 31... Rd2 {[%clk
0:00:46.5]} 32. Nxe4 {[%clk 0:01:48]} 32... fxe4 {[%clk 0:00:46.6]} 33. Qf4
{[%clk 0:01:43.7]} 33... Qxf4 {[%clk 0:00:44.8]} 34. Bxf4 {[%clk 0:01:43.7]}
34... Rxb2 {[%clk 0:00:44]} 35. h3 {[%clk 0:01:38.5]} 35... g5 {[%clk
0:00:34.8]} 36. Bd6 {[%clk 0:01:13.7]} 36... c3 {[%clk 0:00:29.8]} 37. Rxe4
{[%clk 0:01:06.4]} 37... c2 {[%clk 0:00:29.9]} 38. Re8+ {[%clk 0:01:05.9]} 38...
Kg7 {[%clk 0:00:27.1]} 39. Bf8+ {[%clk 0:01:05.1]} 39... Kg6 {[%clk 0:00:27.2]}
40. Rc8 {[%clk 0:01:05.3]} 40... Rb1+ {[%clk 0:00:26.6]} 41. Kh2 {[%clk
0:01:05.8]} 41... c1=Q {[%clk 0:00:27]} 42. Rxc1 {[%clk 0:01:05.4]} 42... Rxc1
{[%clk 0:00:27.9]} 43. Bb4 {[%clk 0:01:05.8]} 43... Be5+ {[%clk 0:00:25.3]} 44.
g3 {[%clk 0:01:05.8]} 44... Rc2+ {[%clk 0:00:25.6]} 45. Kg1 {[%clk 0:01:06.6]}
45... Bxg3 {[%clk 0:00:25.7]} 0-1

[Event "*** Titled Tuesday Blitz"]
[Site "Chess.com"]
[Date "2020.04.14"]
[Round "6"]
[White "fmshawnrl123"]
[Black "Sashadav97"]
[Result "1-0"]
[WhiteElo "2770"]
[BlackElo "2598"]
[TimeControl "180+1"]
[EndTime "11:03:06 PDT"]
[Termination "fmshawnrl123 won by resignation"]

1. c4 {[%clk 0:03:00.9]} 1... e6 {[%clk 0:02:49.4]} 2. g3 {[%clk 0:03:00.4]}
2... d5 {[%clk 0:02:45.7]} 3. Bg2 {[%clk 0:03:01.3]} 3... c5 {[%clk 0:02:45.5]}
4. cxd5 {[%clk 0:02:58.6]} 4... exd5 {[%clk 0:02:45.2]} 5. d4 {[%clk 0:02:59.5]}
5... Nf6 {[%clk 0:02:36]} 6. Nf3 {[%clk 0:02:59.4]} 6... Nc6 {[%clk 0:02:34.4]}
7. Nc3 {[%clk 0:02:59.2]} 7... cxd4 {[%clk 0:02:33.1]} 8. Nxd4 {[%clk
0:03:00.1]} 8... Bc5 {[%clk 0:02:33]} 9. Nxc6 {[%clk 0:02:57.1]} 9... bxc6
{[%clk 0:02:33.9]} 10. O-O {[%clk 0:02:57.8]} 10... O-O {[%clk 0:02:31.8]} 11.
Qc2 {[%clk 0:02:57.8]} 11... Bb6 {[%clk 0:02:28.9]} 12. Na4 {[%clk 0:02:55.1]}
12... Bd7 {[%clk 0:02:26.4]} 13. Nc5 {[%clk 0:02:52.2]} 13... Bg4 {[%clk
0:02:14.2]} 14. Be3 {[%clk 0:02:45]} 14... Qe7 {[%clk 0:02:04.5]} 15. Rac1
{[%clk 0:02:40]} 15... Rfe8 {[%clk 0:02:01.8]} 16. b4 {[%clk 0:02:34.8]} 16...
Rac8 {[%clk 0:02:01.1]} 17. Rfd1 {[%clk 0:02:28.9]} 17... Bh5 {[%clk 0:01:51.4]}
18. a4 {[%clk 0:02:27.1]} 18... Ng4 {[%clk 0:01:07.4]} 19. Bd4 {[%clk
0:02:23.1]} 19... Ne5 {[%clk 0:01:07.2]} 20. a5 {[%clk 0:02:13.7]} 20... Bc7
{[%clk 0:01:07.1]} 21. f3 {[%clk 0:02:10.8]} 21... Bg6 {[%clk 0:01:06.4]} 22.
Qc3 {[%clk 0:02:08.4]} 22... h5 {[%clk 0:01:06.3]} 23. Bh3 {[%clk 0:02:04.3]}
23... Rcd8 {[%clk 0:00:58]} 24. Bf1 {[%clk 0:01:54.7]} 24... h4 {[%clk
0:00:57.4]} 25. f4 {[%clk 0:01:53.4]} 25... Ng4 {[%clk 0:00:53.4]} 26. Bxg7
{[%clk 0:01:52.8]} 26... hxg3 {[%clk 0:00:36]} 27. hxg3 {[%clk 0:01:53.7]} 27...
Qe3+ {[%clk 0:00:35.9]} 28. Qxe3 {[%clk 0:01:48]} 28... Nxe3 {[%clk 0:00:36.8]}
29. Bf6 {[%clk 0:01:40.9]} 29... Rc8 {[%clk 0:00:20.6]} 30. Rd2 {[%clk
0:01:33.7]} 30... Nc4 {[%clk 0:00:20.2]} 31. Ra2 {[%clk 0:01:30.6]} 31... Re3
{[%clk 0:00:19.9]} 32. Kf2 {[%clk 0:01:27.1]} 32... Rce8 {[%clk 0:00:19.4]} 33.
Bg2 {[%clk 0:01:18.1]} 33... Bh5 {[%clk 0:00:19.1]} 34. g4 {[%clk 0:00:53]}
34... Bxg4 {[%clk 0:00:17.3]} 35. Rh1 {[%clk 0:00:52.5]} 35... Rxe2+ {[%clk
0:00:08.9]} 36. Rxe2 {[%clk 0:00:51.6]} 36... Rxe2+ {[%clk 0:00:09.8]} 37. Kg3
{[%clk 0:00:51.7]} 37... Rxg2+ {[%clk 0:00:09]} 38. Kxg2 {[%clk 0:00:51.2]}
38... Ne3+ {[%clk 0:00:04.4]} 39. Kg1 {[%clk 0:00:51.2]} 1-0

[Event "*** Titled Tuesday Blitz"]
[Site "Chess.com"]
[Date "2020.04.14"]
[Round "6"]
[White "chessdjw"]
[Black "aakankshachess"]
[Result "1-0"]
[WhiteElo "2619"]
[BlackElo "2449"]
[TimeControl "180+1"]
[EndTime "11:03:07 PDT"]
[Termination "chessdjw won by resignation"]

1. e4 {[%clk 0:03:00.9]} 1... c5 {[%clk 0:02:57.1]} 2. Nf3 {[%clk 0:03:01]} 2...
d6 {[%clk 0:02:57.3]} 3. d4 {[%clk 0:03:01.5]} 3... cxd4 {[%clk 0:02:57]} 4.
Nxd4 {[%clk 0:03:02.4]} 4... Nf6 {[%clk 0:02:57.2]} 5. Nc3 {[%clk 0:03:03]} 5...
a6 {[%clk 0:02:56.8]} 6. Be3 {[%clk 0:03:02.2]} 6... g6 {[%clk 0:02:56.3]} 7. f3
{[%clk 0:02:59.1]} 7... Bg7 {[%clk 0:02:56.3]} 8. Qd2 {[%clk 0:02:59.2]} 8...
Nc6 {[%clk 0:02:55.4]} 9. O-O-O {[%clk 0:02:57.9]} 9... Nxd4 {[%clk 0:02:54.8]}
10. Bxd4 {[%clk 0:02:56.9]} 10... O-O {[%clk 0:02:55]} 11. Kb1 {[%clk
0:02:56.6]} 11... b5 {[%clk 0:02:55.3]} 12. g4 {[%clk 0:02:53.6]} 12... Be6
{[%clk 0:02:53.9]} 13. h4 {[%clk 0:02:46.4]} 13... Qa5 {[%clk 0:02:51.3]} 14. b3
{[%clk 0:02:17.2]} 14... Rac8 {[%clk 0:02:45.1]} 15. Nd5 {[%clk 0:01:30.6]}
15... Qxd2 {[%clk 0:02:27.3]} 16. Nxe7+ {[%clk 0:01:26]} 16... Kh8 {[%clk
0:02:27.2]} 17. Rxd2 {[%clk 0:01:26.3]} 17... Rc7 {[%clk 0:02:27]} 18. h5 {[%clk
0:01:06.5]} 18... h6 {[%clk 0:02:13.9]} 19. hxg6 {[%clk 0:00:12.6]} 19... Rxe7
{[%clk 0:02:10.2]} 20. g5 {[%clk 0:00:12.2]} 20... fxg6 {[%clk 0:01:55.6]} 21.
gxf6 {[%clk 0:00:09.5]} 21... Bxf6 {[%clk 0:01:56]} 22. Bxf6+ {[%clk 0:00:09.3]}
22... Rxf6 {[%clk 0:01:56.2]} 23. Rxd6 {[%clk 0:00:09.9]} 23... Kg7 {[%clk
0:01:54.9]} 24. Be2 {[%clk 0:00:09.3]} 24... h5 {[%clk 0:01:49.3]} 25. Rxa6
{[%clk 0:00:06.8]} 25... Bd7 {[%clk 0:01:49.6]} 26. Rxf6 {[%clk 0:00:05.8]}
26... Kxf6 {[%clk 0:01:50]} 27. Kb2 {[%clk 0:00:05.8]} 27... Ke5 {[%clk
0:01:49.9]} 28. Rg1 {[%clk 0:00:05.4]} 28... Re6 {[%clk 0:01:46.5]} 29. Bf1
{[%clk 0:00:03.1]} 29... Kf4 {[%clk 0:01:46.1]} 30. Bh3 {[%clk 0:00:03.2]} 30...
Rd6 {[%clk 0:01:46.3]} 31. Bxd7 {[%clk 0:00:03.8]} 31... Rxd7 {[%clk 0:01:46.8]}
32. Rxg6 {[%clk 0:00:04.5]} 32... Kxf3 {[%clk 0:01:46.1]} 33. e5 {[%clk
0:00:04.7]} 33... Re7 {[%clk 0:01:45.8]} 34. e6 {[%clk 0:00:04.8]} 34... h4
{[%clk 0:01:46.2]} 35. Kc3 {[%clk 0:00:04.2]} 35... h3 {[%clk 0:01:46.6]} 36.
Kb4 {[%clk 0:00:03.5]} 36... h2 {[%clk 0:01:46.6]} 37. Rh6 {[%clk 0:00:03.7]}
37... Kg2 {[%clk 0:01:44.5]} 38. Kxb5 {[%clk 0:00:03.8]} 38... Rxe6 {[%clk
0:01:43.4]} 39. Rxh2+ {[%clk 0:00:03.3]} 39... Kxh2 {[%clk 0:01:43.8]} 40. c4
{[%clk 0:00:02.5]} 40... Kg3 {[%clk 0:01:43.5]} 41. c5 {[%clk 0:00:03.1]} 41...
Kf4 {[%clk 0:01:43.6]} 42. c6 {[%clk 0:00:03.5]} 42... Re8 {[%clk 0:01:39.7]}
43. c7 {[%clk 0:00:03.6]} 43... Ke5 {[%clk 0:01:39.9]} 44. Kc6 {[%clk
0:00:04.2]} 44... Ke6 {[%clk 0:01:38.8]} 45. b4 {[%clk 0:00:04.6]} 45... Rc8
{[%clk 0:01:38]} 46. b5 {[%clk 0:00:05]} 46... Ke7 {[%clk 0:01:38.1]} 47. b6
{[%clk 0:00:05.6]} 47... Ra8 {[%clk 0:01:37.7]} 48. b7 {[%clk 0:00:06.1]} 48...
Rxa2 {[%clk 0:01:38.3]} 49. c8=Q {[%clk 0:00:06.9]} 49... Ra6+ {[%clk
0:01:38.9]} 50. Kb5 {[%clk 0:00:07.1]} 50... Rd6 {[%clk 0:01:37.1]} 51. Qc7+
{[%clk 0:00:07.3]} 51... Rd7 {[%clk 0:01:36.4]} 52. Qxd7+ {[%clk 0:00:07.8]}
52... Kxd7 {[%clk 0:01:37.3]} 53. b8=Q {[%clk 0:00:08.6]} 53... Ke6 {[%clk
0:01:37.7]} 54. Qf4 {[%clk 0:00:09.3]} 54... Kd5 {[%clk 0:01:37.7]} 55. Qe3
{[%clk 0:00:10]} 55... Kd6 {[%clk 0:01:37.5]} 56. Qe4 {[%clk 0:00:10.7]} 56...
Kd7 {[%clk 0:01:37.8]} 57. Qe5 {[%clk 0:00:11]} 1-0

[Event "*** Titled Tuesday Blitz"]
[Site "Chess.com"]
[Date "2020.04.14"]
[Round "6"]
[White "Vojtastr"]
[Black "anesar92"]
[Result "1/2-1/2"]
[WhiteElo "2482"]
[BlackElo "2680"]
[TimeControl "180+1"]
[EndTime "11:03:07 PDT"]
[Termination "Game drawn by stalemate"]

1. c4 {[%clk 0:03:00.9]} 1... Nf6 {[%clk 0:02:21.3]} 2. Nc3 {[%clk 0:03:00.9]}
2... c5 {[%clk 0:02:15.9]} 3. Nf3 {[%clk 0:02:59.9]} 3... g6 {[%clk 0:02:14.9]}
4. d4 {[%clk 0:02:59.9]} 4... cxd4 {[%clk 0:02:15.8]} 5. Nxd4 {[%clk 0:03:00.6]}
5... Nc6 {[%clk 0:02:16.1]} 6. e4 {[%clk 0:03:00.5]} 6... Bg7 {[%clk 0:02:16.6]}
7. Be3 {[%clk 0:02:58.9]} 7... d6 {[%clk 0:02:13]} 8. f3 {[%clk 0:02:55]} 8...
O-O {[%clk 0:02:12.7]} 9. Qd2 {[%clk 0:02:53]} 9... a5 {[%clk 0:02:11.5]} 10.
Be2 {[%clk 0:02:49.1]} 10... a4 {[%clk 0:02:11.6]} 11. O-O {[%clk 0:02:49.6]}
11... Nxd4 {[%clk 0:02:11.7]} 12. Bxd4 {[%clk 0:02:49.5]} 12... Qa5 {[%clk
0:02:12.3]} 13. Rac1 {[%clk 0:02:48.6]} 13... Be6 {[%clk 0:02:12.3]} 14. Rfd1
{[%clk 0:02:43.1]} 14... Rfc8 {[%clk 0:02:08.8]} 15. b3 {[%clk 0:02:30]} 15...
axb3 {[%clk 0:02:08]} 16. axb3 {[%clk 0:02:30.9]} 16... Qb4 {[%clk 0:02:04.2]}
17. Bxf6 {[%clk 0:02:13.9]} 17... Bxf6 {[%clk 0:01:58.5]} 18. Nd5 {[%clk
0:02:14.4]} 18... Qxd2 {[%clk 0:01:50.3]} 19. Nxf6+ {[%clk 0:02:13.6]} 19... Kg7
{[%clk 0:01:50.4]} 20. Rxd2 {[%clk 0:02:14.2]} 20... Kxf6 {[%clk 0:01:50.4]} 21.
b4 {[%clk 0:01:57.3]} 21... Ra4 {[%clk 0:01:48.2]} 22. Rb2 {[%clk 0:01:55.4]}
22... Ra3 {[%clk 0:01:45]} 23. Kf2 {[%clk 0:01:54.2]} 23... Rca8 {[%clk
0:01:43.5]} 24. c5 {[%clk 0:01:52.2]} 24... dxc5 {[%clk 0:01:40.9]} 25. bxc5
{[%clk 0:01:53.1]} 25... R8a7 {[%clk 0:01:38.9]} 26. Rcb1 {[%clk 0:01:51.5]}
26... Rc3 {[%clk 0:01:38]} 27. Rxb7 {[%clk 0:01:50]} 27... Rxb7 {[%clk
0:01:38.9]} 28. Rxb7 {[%clk 0:01:50.5]} 28... Rxc5 {[%clk 0:01:39]} 29. Rb2
{[%clk 0:01:50.5]} 29... g5 {[%clk 0:01:37.2]} 30. Ke3 {[%clk 0:01:46.1]} 30...
Ke5 {[%clk 0:01:36.9]} 31. Rb5 {[%clk 0:01:44.6]} 31... Rxb5 {[%clk 0:01:34.3]}
32. Bxb5 {[%clk 0:01:45.5]} 32... f5 {[%clk 0:01:34.3]} 33. exf5 {[%clk
0:01:44.5]} 33... Bxf5 {[%clk 0:01:28.5]} 34. Be2 {[%clk 0:01:43.3]} 34... h5
{[%clk 0:01:28.2]} 35. g3 {[%clk 0:01:43.3]} 35... h4 {[%clk 0:01:27.4]} 36. Bb5
{[%clk 0:01:42.7]} 36... Be6 {[%clk 0:01:25.2]} 37. Be2 {[%clk 0:01:42.2]} 37...
Kf6 {[%clk 0:01:23.7]} 38. Bd3 {[%clk 0:01:42.1]} 38... Bh3 {[%clk 0:01:22.4]}
39. Be2 {[%clk 0:01:41.9]} 39... e5 {[%clk 0:01:22.5]} 40. Bd3 {[%clk 0:01:42]}
40... Bg2 {[%clk 0:01:16.6]} 41. Bc4 {[%clk 0:01:40]} 41... Ke7 {[%clk
0:01:16.5]} 42. Bd3 {[%clk 0:01:35.4]} 42... Kd6 {[%clk 0:01:16.4]} 43. Be2
{[%clk 0:01:30.3]} 43... hxg3 {[%clk 0:01:13.1]} 44. hxg3 {[%clk 0:01:29.8]}
44... e4 {[%clk 0:01:09.3]} 45. f4 {[%clk 0:01:24.4]} 45... gxf4+ {[%clk
0:01:08.6]} 46. gxf4 {[%clk 0:01:25.3]} 46... Ke7 {[%clk 0:01:08.5]} 47. Bg4
{[%clk 0:00:57]} 47... Kf6 {[%clk 0:01:05.4]} 48. Bd7 {[%clk 0:00:56.4]} 48...
Bf3 {[%clk 0:01:03.5]} 49. Bc8 {[%clk 0:00:56.4]} 49... Bg2 {[%clk 0:01:03.2]}
50. Bb7 {[%clk 0:00:56.6]} 50... Kf5 {[%clk 0:01:02.9]} 51. Bc6 {[%clk
0:00:56.8]} 51... Bf3 {[%clk 0:01:02.7]} 52. Bd5 {[%clk 0:00:56.9]} 52... Bg2
{[%clk 0:01:01.8]} 53. Bg8 {[%clk 0:00:56.9]} 53... Bf3 {[%clk 0:01:01.5]} 54.
Bh7+ {[%clk 0:00:56.7]} 54... Kf6 {[%clk 0:01:01.8]} 55. Bxe4 {[%clk 0:00:56.2]}
55... Bxe4 {[%clk 0:01:02.7]} 56. Kxe4 {[%clk 0:00:57.1]} 56... Ke6 {[%clk
0:01:03.3]} 57. f5+ {[%clk 0:00:58]} 57... Kf6 {[%clk 0:01:04.2]} 58. Kf4 {[%clk
0:00:58.5]} 58... Kf7 {[%clk 0:01:05.1]} 59. Ke5 {[%clk 0:00:59.4]} 59... Ke7
{[%clk 0:01:05.5]} 60. f6+ {[%clk 0:01:00.3]} 60... Kf7 {[%clk 0:01:06.1]} 61.
Kf5 {[%clk 0:01:01.2]} 61... Kf8 {[%clk 0:01:07]} 62. Kg6 {[%clk 0:01:02.1]}
62... Kg8 {[%clk 0:01:07.4]} 63. f7+ {[%clk 0:01:03]} 63... Kf8 {[%clk
0:01:07.9]} 64. Kf6 {[%clk 0:01:03.9]} 1/2-1/2

[Event "*** Titled Tuesday Blitz"]
[Site "Chess.com"]
[Date "2020.04.14"]
[Round "6"]
[White "MikeSailer"]
[Black "FeketeBarika"]
[Result "1-0"]
[WhiteElo "2122"]
[BlackElo "2277"]
[TimeControl "180+1"]
[EndTime "11:03:10 PDT"]
[Termination "MikeSailer won by resignation"]

1. d4 {[%clk 0:03:00.9]} 1... e6 {[%clk 0:02:00.1]} 2. Bf4 {[%clk 0:02:58]} 2...
Nf6 {[%clk 0:01:58.2]} 3. e3 {[%clk 0:02:58.4]} 3... c5 {[%clk 0:01:56.5]} 4.
Nf3 {[%clk 0:02:56.7]} 4... b6 {[%clk 0:01:56.3]} 5. c3 {[%clk 0:02:55.1]} 5...
Bb7 {[%clk 0:01:49.8]} 6. h3 {[%clk 0:02:54.5]} 6... Be7 {[%clk 0:01:45.6]} 7.
Nbd2 {[%clk 0:02:53.1]} 7... O-O {[%clk 0:01:33.4]} 8. Be2 {[%clk 0:02:50.9]}
8... cxd4 {[%clk 0:01:28.9]} 9. exd4 {[%clk 0:02:49.1]} 9... d6 {[%clk
0:01:28.9]} 10. O-O {[%clk 0:02:48.2]} 10... Nbd7 {[%clk 0:01:29.3]} 11. Re1
{[%clk 0:02:47.3]} 11... Re8 {[%clk 0:01:23.9]} 12. a4 {[%clk 0:02:46.9]} 12...
a6 {[%clk 0:01:20.3]} 13. Nc4 {[%clk 0:02:37.1]} 13... Qc7 {[%clk 0:01:14.3]}
14. Bd3 {[%clk 0:02:16.2]} 14... Rac8 {[%clk 0:00:53.9]} 15. Bh2 {[%clk
0:02:00.4]} 15... Bf8 {[%clk 0:00:52.1]} 16. Ne3 {[%clk 0:01:47.2]} 16... e5
{[%clk 0:00:46.2]} 17. Bc2 {[%clk 0:01:26.2]} 17... Bxf3 {[%clk 0:00:23.4]} 18.
Qxf3 {[%clk 0:01:20.4]} 18... exd4 {[%clk 0:00:23.3]} 19. cxd4 {[%clk
0:01:12.7]} 19... Rxe3 {[%clk 0:00:22.3]} 20. Qxe3 {[%clk 0:00:57.9]} 20... Nd5
{[%clk 0:00:14.2]} 21. Bxh7+ {[%clk 0:00:38.3]} 21... Kxh7 {[%clk 0:00:13.6]}
22. Qe4+ {[%clk 0:00:34.9]} 22... Kg8 {[%clk 0:00:13.6]} 23. Qxd5 {[%clk
0:00:35.1]} 23... Nf6 {[%clk 0:00:14]} 24. Qf5 {[%clk 0:00:30.3]} 24... Qc4
{[%clk 0:00:11.6]} 25. Bg3 {[%clk 0:00:21.9]} 25... Qxd4 {[%clk 0:00:10.6]} 26.
Qxc8 {[%clk 0:00:21.1]} 26... Ne4 {[%clk 0:00:10.3]} 27. Rxe4 {[%clk 0:00:16.6]}
27... Qxe4 {[%clk 0:00:10]} 28. Bxd6 {[%clk 0:00:15.7]} 1-0